fUST/lending_fUST_20241110
["ID","MTS","AMOUNT","RATE_DAILY","PERIOD"]
[341795525,1731234643300,-500.0,0.00030136,2]
[341795526,1731234643309,-641.3,0.00030136,2]
[341795527,1731234643319,-2008.46,0.00030136,2]
[341795528,1731234643328,-311.76168722,0.00030136,2]
[341795529,1731234643338,-430.08548621,0.00030136,2]
[341795530,1731234643347,-500.0,0.00030136,2]
[341795531,1731234643356,-505.41821433,0.00030136,2]
[341795532,1731234643367,-500.0,0.00030136,2]
[341795533,1731234643379,-502.90208823,0.00030136,2]
[341795534,1731234643389,-518.50551859,0.00030136,2]
[341795535,1731234643398,-520.16854167,0.00030136,2]
[341795536,1731234643407,-151.0,0.00030136,7]
[341795537,1731234643417,-512.25000857,0.00030136,2]
[341795538,1731234643427,-862.48,0.00030136,2]
[341795539,1731234643436,-500.0,0.00030136,2]
[341795540,1731234643445,-526.54289564,0.00030136,2]
[341795541,1731234643456,-151.0,0.00030136,7]
[341795542,1731234643466,-511.07489608,0.00030136,2]
[341795543,1731234643475,-500.0,0.00030136,2]
[341795544,1731234643484,-1070.5,0.00030136,2]
[341795545,1731234643493,-500.0,0.00030136,2]
[341795546,1731234643502,-609.0619343,0.00030136,2]
[341795547,1731234643514,-500.0,0.00030136,2]
[341795548,1731234643523,-500.0,0.00030136,2]
[341795549,1731234643532,-500.0,0.00030136,2]
[341795550,1731234643541,-500.0,0.00030136,2]
[341795551,1731234643550,-510.47767647,0.00030136,2]
[341795552,1731234643560,-504.97643394,0.00030136,2]
[341795553,1731234643569,-500.0,0.00030136,2]
[341795554,1731234643578,-540.45251602,0.00030136,2]
[341795555,1731234643587,-504.96827437,0.00030136,2]
[341795556,1731234643596,-1986.81,0.00030136,2]
[341795557,1731234643606,-516.49087283,0.00030136,2]
[341795558,1731234643615,-500.0,0.00030136,2]
[341795559,1731234643625,-500.0,0.00030136,2]
[341795560,1731234643635,-501.50459473,0.00030136,2]
[341795561,1731234643644,-202.67763512,0.00030136,2]
[341795562,1731234643655,-500.0,0.00030136,2]
[341795563,1731234643665,-500.0,0.00030136,2]
[341795564,1731234643679,-151.0,0.00030136,7]
[341795565,1731234643688,-500.0,0.00030136,2]
[341795566,1731234643698,-500.0,0.00030136,2]
[341795567,1731234643707,-492.00199656,0.00030136,2]
[341795568,1731234643716,-500.0,0.00030136,2]
[341795569,1731234643725,-510.21449687,0.00030136,2]
[341795570,1731234643736,-500.0,0.00030136,2]
[341795571,1731234643746,-261.14228993,0.00030136,2]
[341795572,1731234643755,-500.0,0.00030136,2]
[341795573,1731234643764,-204.563807,0.00030136,7]
[341795574,1731234643773,-773.95,0.00030136,2]
[341795575,1731234643782,-334.0166984,0.00030136,2]
[341795576,1731234643791,-500.0,0.00030136,2]
[341795577,1731234643800,-500.0,0.00030136,2]
[341795578,1731234643809,-500.56074908,0.00030136,2]
[341795579,1731234643819,-204.563807,0.00030136,7]
[341795580,1731234643828,-527.50004315,0.00030136,2]
[341795581,1731234643837,-511.39697647,0.00030136,2]
[341795582,1731234643847,-670.136008,0.00030136,7]
[341795583,1731234643857,-500.0,0.00030136,2]
[341795584,1731234643866,-670.136008,0.00030136,7]
[341795585,1731234643875,-500.0,0.00030136,2]
[341795586,1731234643885,-500.0,0.00030136,2]
[341795587,1731234643894,-240.91329724,0.00030136,2]
[341795588,1731234643903,-518.09439356,0.00030136,2]
[341795589,1731234643978,-500.0,0.00030136,2]
[341795590,1731234643989,-500.0,0.00030136,2]
[341795591,1731234643998,-500.0,0.00030136,2]
[341795592,1731234644008,-534.9169993,0.00030136,2]
[341795593,1731234644017,-500.0,0.00030136,2]
[341795594,1731234644026,-214.4909827,0.00030136,2]
[341795595,1731234644035,-500.0,0.00030136,2]
[341795596,1731234644045,-500.0,0.00030136,2]
[341795597,1731234644054,-983.6,0.00030136,2]
[341795598,1731234644063,-527.41490177,0.00030136,2]
[341795599,1731234644072,-518.61571358,0.00030136,2]
[341795600,1731234644081,-500.0,0.00030136,2]
[341795601,1731234644090,-500.0,0.00030136,2]
[341795602,1731234644099,-500.0,0.00030136,2]
[341795603,1731234644109,-500.0,0.00030136,2]
[341795604,1731234644118,-500.0,0.00030136,2]
[341795605,1731234644127,-1280.96,0.00030136,2]
[341795606,1731234644137,-500.0,0.00030136,2]
[341795607,1731234644146,-500.0,0.00030136,2]
[341795608,1731234644155,-508.96990917,0.00030136,2]
[341795609,1731234644165,-2320.54,0.00030136,2]
[341795610,1731234644175,-500.0,0.00030136,2]
[341795611,1731234644185,-500.0,0.00030136,2]
[341795612,1731234644195,-521.86041506,0.00030136,2]
[341795613,1731234644204,-500.0,0.00030136,2]
[341795614,1731234644214,-500.0,0.00030136,2]
[341795615,1731234644223,-550.3899944,0.00030136,2]
[341795616,1731234644233,-404.22584864,0.00030136,2]
[341795617,1731234644243,-500.0,0.00030136,2]
[341795618,1731234644251,-500.0,0.00030136,2]
[341795619,1731234644261,-500.0,0.00030136,2]
[341795620,1731234644270,-500.0,0.00030136,2]
[341795621,1731234644279,-500.0,0.00030136,2]
[341795622,1731234644289,-504.57,0.00030136,2]
[341795623,1731234644298,-505.40274169,0.00030136,2]
[341795624,1731234644307,-813.59,0.00030136,2]
[341795625,1731234644316,-502.77,0.00030136,2]
[341795626,1731234644326,-646.47,0.00030136,2]
[341795627,1731234644335,-500.0,0.00030136,2]
[341795628,1731234644344,-500.0,0.00030136,2]
[341795629,1731234644353,-508.16,0.00030136,2]
[341795630,1731234644362,-500.0,0.00030136,2]
[341795631,1731234644371,-508.07125798,0.00030136,2]
[341795632,1731234644380,-411.81066229,0.00030136,2]
[341795633,1731234644390,-500.0,0.00030136,2]
[341795634,1731234644399,-620.28,0.00030136,2]
[341795635,1731234644408,-500.0,0.00030136,2]
[341795636,1731234644418,-503.704676,0.00030136,2]
[341795637,1731234644427,-500.0,0.00030136,2]
[341795638,1731234644436,-520.45694538,0.00030136,2]
[341795639,1731234644445,-504.39993461,0.00030136,2]
[341795640,1731234644455,-500.0,0.00030136,2]
[341795641,1731234644465,-500.0,0.00030136,2]
[341795642,1731234644474,-162.35441955,0.00030136,2]
[341795643,1731234644526,-500.0,0.00029499,2]
[341795644,1731234644535,-500.0,0.00029499,2]
[341795645,1731234644544,-500.0,0.00029499,2]
[341795646,1731234644554,-282.78652112,0.00029499,2]
[341795647,1731234644563,-337.64558045,0.00030136,2]
[341795648,1731234644572,-34.87906284,0.00030136,2]
[341795649,1731234644584,-465.12093716,0.00030136,2]
[341795650,1731234644593,-1535.24171233,0.00030136,2]
[341795651,1731234644605,-384.8896883,0.00030136,2]
[341795652,1731234644616,-305.38142777,0.00030136,2]
[341795653,1731234644627,-640.8171716,0.00030136,2]
[341795654,1731234644636,-314.3886364,0.00030136,2]
[341795655,1731234645177,-500.0,0.00029499,2]
[341795656,1731234645186,-500.0,0.00029499,2]
[341795657,1731234645195,-364.13448896,0.00029499,2]
[341795658,1731234645211,-135.86551104,0.00029499,2]
[341795659,1731234645220,-500.0,0.00029499,2]
[341795660,1731234645230,-500.0,0.00029499,2]
[341795661,1731234645239,-500.0,0.00029499,2]
[341795662,1731234645248,-500.0,0.00029499,2]
[341795663,1731234645257,-500.0,0.00029499,2]
[341795664,1731234645267,-500.0,0.00029499,2]
[341795665,1731234645276,-334.5084246,0.00029499,2]
[341795666,1731234645286,-500.0,0.00029499,2]
[341795667,1731234645295,-500.0,0.00029499,2]
[341795668,1731234645304,-500.0,0.00029499,2]
[341795669,1731234645314,-500.0,0.00029499,2]
[341795670,1731234645323,-500.0,0.00029499,2]
[341795671,1731234645333,-500.0,0.00029499,2]
[341795672,1731234645343,-500.0,0.00029499,2]
[341795673,1731234645352,-500.0,0.00029499,2]
[341795674,1731234645362,-500.0,0.00029499,2]
[341795675,1731234645372,-500.0,0.00029499,2]
[341795676,1731234645382,-500.0,0.00029499,2]
[341795677,1731234645391,-500.0,0.00029499,2]
[341795678,1731234645401,-500.0,0.00029499,2]
[341795679,1731234645410,-366.32556781,0.00029499,2]
[341795680,1731234645421,-500.0,0.00029499,2]
[341795682,1731234645430,-500.0,0.00029499,2]
[341795684,1731234645439,-500.0,0.00029499,2]
[341795686,1731234645449,-175.23370518,0.00029499,2]
[341795688,1731234645458,-500.0,0.00029499,2]
[341795690,1731234645467,-500.0,0.00029499,2]
[341795692,1731234645477,-500.0,0.00029499,2]
[341795694,1731234645487,-500.0,0.00029499,2]
[341795696,1731234645496,-185.6113636,0.00030136,2]
[341795698,1731234645506,-500.0,0.00030136,2]
[341795700,1731234645515,-500.0,0.00030136,2]
[341795702,1731234645524,-547.80297096,0.00030136,2]
[341795704,1731234645533,-500.0,0.00030136,2]
[341795706,1731234645542,-500.0,0.00030136,2]
[341795708,1731234645551,-166.20039571,0.00030136,2]
[341795710,1731234645560,-500.0,0.00030136,2]
[341795712,1731234645570,-500.0,0.00030136,2]
[341795715,1731234645581,-500.0,0.00030136,2]
[341795716,1731234645590,-500.0,0.00030136,2]
[341795718,1731234645600,-500.0,0.00030136,2]
[341795720,1731234645610,-500.0,0.00030136,2]
[341795721,1731234645620,-500.0,0.00030136,2]
[341795723,1731234645630,-603.3899854,0.00030136,2]
[341795725,1731234645640,-534.05435722,0.00030136,2]
[341795726,1731234645649,-503.10449362,0.00030136,2]
[341795728,1731234645660,-154.98076641,0.00030136,2]
[341795730,1731234645672,-500.0,0.00030136,2]
[341795731,1731234645682,-500.0,0.00030136,2]
[341795733,1731234645691,-500.0,0.00030136,2]
[341795734,1731234645702,-500.0,0.00030136,2]
[341795736,1731234645711,-500.0,0.00030136,2]
[341795738,1731234645721,-608.74926885,0.00030136,2]
[341795739,1731234645730,-500.0,0.00030136,2]
[341795741,1731234645740,-640.39138322,0.00030136,2]
[341795742,1731234645750,-500.0,0.00030136,2]
[341795744,1731234645760,-500.0,0.00030136,2]
[341795746,1731234645771,-500.0,0.00030136,2]
[341795748,1731234645781,-500.0,0.00030136,2]
[341795750,1731234645791,-495.108767,0.00030136,7]
[341795752,1731234645801,-500.0,0.00030136,2]
[341795754,1731234645811,-941.16,0.00030136,2]
[341795755,1731234645820,-500.0,0.00030136,2]
[341795757,1731234645830,-561.10643521,0.00030136,2]
[341795758,1731234645839,-495.108767,0.00030136,7]
[341795760,1731234645848,-500.0,0.00030136,2]
[341795763,1731234645858,-504.36273805,0.00030136,2]
[341795764,1731234645867,-500.0,0.00030136,2]
[341795766,1731234645877,-502.08717726,0.00030136,2]
[341795768,1731234645886,-500.0,0.00030136,2]
[341795769,1731234645896,-500.0,0.00030136,2]
[341795771,1731234645906,-500.0,0.00030136,2]
[341795774,1731234645915,-506.50985476,0.00030136,2]
[341795776,1731234645926,-512.56211605,0.00030136,2]
[341795778,1731234645936,-500.0,0.00030136,2]
[341795780,1731234645946,-500.0,0.00030136,2]
[341795782,1731234645958,-996.54,0.00030136,2]
[341795783,1731234645970,-506.73183209,0.00030136,2]
[341795784,1731234645980,-616.67115962,0.00030136,2]
[341795785,1731234645989,-500.0,0.00030136,2]
[341795786,1731234646000,-504.83627988,0.00030136,2]
[341795788,1731234646010,-592.08,0.00030136,2]
[341795790,1731234646021,-503.88918322,0.00030136,2]
[341795792,1731234646030,-500.0,0.00030136,2]
[341795794,1731234646040,-509.61172301,0.00030136,2]
[341795796,1731234646051,-500.0,0.00030136,2]
[341795798,1731234646060,-500.0,0.00030136,2]
[341795800,1731234646069,-500.0,0.00030136,2]
[341795802,1731234646079,-586.47599497,0.00030136,2]
[341795804,1731234646088,-500.0,0.00030136,2]
[341795805,1731234646097,-500.0,0.00030136,2]
[341795806,1731234646106,-9962.1,0.00030136,2]
[341795807,1731234646113,-500.0,0.00030136,2]
[341795808,1731234646122,-224.719958,0.00030136,7]
[341795809,1731234646130,-500.0,0.00030136,2]
[341795810,1731234646140,-2162.550063,0.00030136,7]
[341795811,1731234646149,-500.0,0.00030136,2]
[341795812,1731234646159,-1217.58,0.00030136,2]
[341795813,1731234646170,-512.04210063,0.00030136,2]
[341795814,1731234646179,-637.41378035,0.00030136,2]
[341795815,1731234646251,-500.0,0.00030136,2]
[341795816,1731234646268,-500.0,0.00030136,2]
[341795817,1731234646279,-2032.34,0.00030136,2]
[341795818,1731234646289,-2162.550063,0.00030136,7]
[341795819,1731234646299,-500.0,0.00030136,2]
[341795820,1731234646310,-648.38146852,0.00030136,2]
[341795821,1731234646320,-151.0,0.00030136,2]
[341795822,1731234646330,-500.0,0.00030136,2]
[341795823,1731234646340,-509.89417042,0.00030136,2]
[341795824,1731234646350,-500.0,0.00030136,2]
[341795825,1731234646360,-500.0,0.00030136,2]
[341795826,1731234646370,-383.231884,0.00030136,7]
[341795827,1731234646380,-578.9,0.00030136,2]
[341795828,1731234646390,-500.0,0.00030136,2]
[341795829,1731234646399,-500.0,0.00030136,2]
[341795830,1731234646408,-489.30373428,0.00030136,2]
[341795831,1731234646418,-502.62968551,0.00030136,2]
[341795832,1731234646429,-383.231884,0.00030136,7]
[341795833,1731234646438,-500.0,0.00030136,2]
[341795834,1731234646448,-500.0,0.00030136,2]
[341795835,1731234646458,-16873.61,0.00030136,2]
[341795836,1731234646467,-500.0,0.00030136,2]
[341795837,1731234646478,-500.0,0.00030136,2]
[341795838,1731234646487,-528.23423126,0.00030136,2]
[341795839,1731234646497,-500.0,0.00030136,2]
[341795840,1731234646507,-151.0,0.00030136,7]
[341795841,1731234646517,-500.0,0.00030136,2]
[341795842,1731234646527,-500.0,0.00030136,2]
[341795843,1731234646537,-500.0,0.00030136,2]
[341795844,1731234646547,-500.0,0.00030136,2]
[341795845,1731234646557,-151.0,0.00030136,7]
[341795846,1731234646568,-151.0,0.00030136,7]
[341795847,1731234646577,-2246.69,0.00030136,2]
[341795848,1731234646588,-500.0,0.00030136,2]
[341795849,1731234646598,-500.0,0.00030136,2]
[341795850,1731234646608,-521.01509876,0.00030136,2]
[341795851,1731234646618,-500.0,0.00030136,2]
[341795852,1731234646628,-408.28901436,0.00030136,2]
[341795853,1731234646637,-500.0,0.00030136,2]
[341795854,1731234646646,-500.0,0.00030136,2]
[341795855,1731234646656,-500.0,0.00030136,2]
[341795856,1731234646666,-500.0,0.00030136,2]
[341795857,1731234646678,-500.0,0.00030136,2]
[341795858,1731234646688,-500.0,0.00030136,2]
[341795859,1731234646699,-500.0,0.00030136,2]
[341795860,1731234646709,-500.0,0.00030136,2]
[341795861,1731234646719,-500.0,0.00030136,2]
[341795862,1731234646729,-871.36,0.00030136,2]
[341795863,1731234646740,-500.0,0.00030136,2]
[341795864,1731234646751,-517.31522249,0.00030136,2]
[341795865,1731234646762,-500.0,0.00030136,2]
[341795866,1731234646773,-500.0,0.00030136,2]
[341795867,1731234646783,-500.0,0.00030136,2]
[341795868,1731234646793,-567.72,0.00030136,2]
[341795869,1731234646804,-500.0,0.00030136,2]
[341795870,1731234646814,-500.0,0.00030136,2]
[341795871,1731234646824,-631.274078,0.00030136,7]
[341795872,1731234646836,-500.0,0.00030136,2]
[341795873,1731234646846,-584.19,0.00030136,2]
[341795874,1731234646856,-2035.49,0.00030136,2]
[341795875,1731234646866,-500.0,0.00030136,2]
[341795876,1731234646876,-500.0,0.00030136,2]
[341795877,1731234646886,-500.0,0.00030136,2]
[341795878,1731234646896,-7313.17,0.00030136,2]
[341795879,1731234646907,-631.274078,0.00030136,7]
[341795880,1731234646917,-500.0,0.00030136,2]
[341795881,1731234646928,-500.0,0.00030136,2]
[341795882,1731234646938,-500.0,0.00030136,2]
[341795883,1731234646950,-2690.17109371,0.00030136,2]
[341795884,1731234646967,-522.82500179,0.00030136,2]
[341795885,1731234647164,-2910.8439045,0.00030136,2]
[341795886,1731234647175,-504.49707066,0.00030136,2]
[341795887,1731234647185,-6123.84,0.00030136,2]
[341795888,1731234647203,-6123.84,0.00030136,2]
[341795889,1731234647212,-500.0,0.00030136,2]
[341795890,1731234647221,-4688.72931529,0.00030136,2]
[341795891,1731234647344,-133.46978344,0.00030136,2]
[341795892,1731234647359,-1301.64090127,0.00030136,2]
[341795893,1731234647367,-14.04253406,0.00030136,2]
[341795894,1731234647379,-2108.6180666,0.00030136,2]
[341795895,1731234647595,-153.0,0.0003,30]
[341795896,1731234647607,-4001.17939934,0.00030136,2]
[341795897,1731234647617,-6123.84,0.00030136,2]
[341795898,1731234647626,-6123.84,0.00030136,2]
[341795899,1731234647635,-500.0,0.00030136,2]
[341795900,1731234647645,-6123.84,0.00030136,2]
[341795901,1731234647655,-6123.84,0.00030136,2]
[341795902,1731234647665,-6123.84,0.00030136,2]
[341795903,1731234647681,-6123.84,0.00030136,2]
[341795904,1731234647691,-6123.84,0.00030136,2]
[341795905,1731234647701,-6123.84,0.00030136,2]
[341795906,1731234647713,-6123.84,0.00030136,2]
[341795907,1731234647724,-6123.84,0.00030136,2]
[341795908,1731234647733,-6123.84,0.00030136,2]
[341795909,1731234647744,-500.0,0.00030136,2]
[341795910,1731234647753,-6123.84,0.00030136,2]
[341795911,1731234647763,-639.32637579,0.00030136,2]
[341795912,1731234647772,-6123.84,0.00030136,2]
[341795913,1731234647782,-6123.84,0.00030136,2]
[341795914,1731234647791,-6123.84,0.00030136,2]
[341795915,1731234647800,-6123.84,0.00030136,2]
[341795916,1731234647809,-6123.84,0.00030136,2]
[341795917,1731234647819,-6123.84,0.00030136,2]
[341795918,1731234647829,-500.0,0.00030136,2]
[341795919,1731234647839,-6123.97256565,0.00030136,2]
[341795920,1731234647848,-512.7457207,0.00030136,2]
[341795921,1731234647857,-526.64775086,0.00030136,2]
[341795922,1731234647866,-500.0,0.00030136,2]
[341795923,1731234647876,-500.0,0.00030136,2]
[341795924,1731234647885,-323.97121244,0.00030136,2]
[341795925,1731234647894,-500.0,0.00030136,2]
[341795926,1731234647903,-500.0,0.00030136,2]
[341795927,1731234647912,-349.66560353,0.00030136,2]
[341795928,1731234647924,-500.0,0.00030136,2]
[341795929,1731234647933,-500.0,0.00030136,2]
[341795930,1731234647943,-391.4469924,0.00030136,2]
[341795931,1731234647954,-500.0,0.00030136,2]
[341795932,1731234647964,-507.76457974,0.00030136,2]
[341795933,1731234647974,-500.0,0.00030136,2]
[341795934,1731234647983,-500.0,0.00030136,2]
[341795935,1731234647993,-508.67385421,0.00030136,2]
[341795936,1731234648004,-506.81952075,0.00030136,2]
[341795937,1731234648014,-500.0,0.00030136,2]
[341795938,1731234648023,-500.0,0.00030136,2]
[341795939,1731234648033,-500.0,0.00030136,2]
[341795940,1731234648043,-500.0,0.00030136,2]
[341795941,1731234648052,-500.0,0.00030136,2]
[341795942,1731234648062,-502.44953685,0.00030136,2]
[341795943,1731234648071,-500.19635589,0.00030136,2]
[341795944,1731234648081,-503.84188911,0.00030136,2]
[341795945,1731234648090,-500.0,0.00030136,2]
[341795946,1731234648100,-151.0,0.00030136,7]
[341795947,1731234648109,-156.427579,0.00030136,7]
[341795948,1731234648118,-500.0,0.00030136,2]
[341795949,1731234648128,-500.0,0.00030136,2]
[341795950,1731234648138,-502.61058034,0.00030136,2]
[341795951,1731234648147,-5499.66,0.00030136,2]
[341795952,1731234648156,-500.0,0.00030136,2]
[341795953,1731234648166,-719.71,0.00030136,2]
[341795954,1731234648176,-502.25816379,0.00030136,2]
[341795955,1731234648186,-500.0,0.00030136,2]
[341795956,1731234648195,-500.0,0.00030136,2]
[341795957,1731234648205,-100000.0,0.00030136,2]
[341795958,1731234648214,-70892.16523453,0.00030136,2]
[341795959,1731234648223,-500.0,0.00030136,2]
[341795960,1731234648232,-500.0,0.00030136,2]
[341795961,1731234648241,-1131.43,0.00030136,2]
[341795962,1731234648251,-4840.12,0.00030136,120]
[341795963,1731234648319,-500.0,0.00030136,2]
[341795964,1731234648329,-814.18,0.00030136,2]
[341795965,1731234648339,-500.0,0.00030136,2]
[341795966,1731234648349,-500.0,0.00030136,2]
[341795967,1731234648359,-500.0,0.00030136,2]
[341795968,1731234648369,-1976.2,0.00030136,2]
[341795969,1731234648378,-505.6070616,0.00030136,2]
[341795970,1731234648388,-500.0,0.00030136,2]
[341795971,1731234648397,-620.31,0.00030136,2]
[341795972,1731234648407,-1104.47,0.00030136,2]
[341795973,1731234648416,-500.0,0.00030136,2]
[341795974,1731234648427,-5244.27,0.00030136,2]
[341795975,1731234648436,-566.83150239,0.00030136,2]
[341795976,1731234648446,-500.0,0.00030136,2]
[341795977,1731234648455,-500.0,0.00030136,2]
[341795978,1731234648465,-500.0,0.00030136,2]
[341795979,1731234648474,-500.0,0.00030136,2]
[341795980,1731234648484,-500.0,0.00030136,2]
[341795981,1731234648493,-1003.78,0.00030136,2]
[341795982,1731234648502,-4193.03,0.00030136,2]
[341795983,1731234648511,-1849.08,0.00030136,2]
[341795984,1731234648521,-500.0,0.00030136,2]
[341795985,1731234648529,-500.0,0.00030136,2]
[341795986,1731234648538,-500.0,0.00030136,2]
[341795987,1731234648547,-500.0,0.00030136,2]
[341795988,1731234648557,-500.0,0.00030136,2]
[341795989,1731234648566,-500.0,0.00030136,2]
[341795990,1731234648575,-500.0,0.00030136,2]
[341795991,1731234648584,-500.0,0.00030136,2]
[341795992,1731234648593,-506.32920754,0.00030136,2]
[341795993,1731234648602,-500.0,0.00030136,2]
[341795994,1731234648611,-1474.6,0.00030136,2]
[341795995,1731234648621,-500.0,0.00030136,2]
[341795996,1731234648630,-1530.26,0.00030136,2]
[341795997,1731234648639,-504.08773608,0.00030136,2]
[341795998,1731234648648,-840.96,0.00030136,2]
[341795999,1731234648658,-500.0,0.00030136,2]
[341796000,1731234648669,-500.0,0.00030136,2]
[341796001,1731234648678,-1699.03,0.00030136,2]
[341796002,1731234648687,-500.0,0.00030136,2]
[341796003,1731234648697,-726.15,0.00030136,2]
[341796004,1731234648706,-500.0,0.00030136,2]
[341796005,1731234648716,-500.0,0.00030136,2]
[341796006,1731234648728,-500.0,0.00030136,2]
[341796007,1731234648747,-500.0,0.00030136,2]
[341796008,1731234648764,-2336.0,0.00030136,2]
[341796009,1731234648782,-500.0,0.00030136,2]
[341796010,1731234648800,-500.0,0.00030136,2]
[341796011,1731234648817,-500.0,0.00030136,2]
[341796012,1731234648835,-500.0,0.00030136,2]
[341796013,1731234648849,-500.0,0.00030136,2]
[341796014,1731234648864,-500.0,0.00030136,2]
[341796015,1731234648882,-500.0,0.00030136,2]
[341796016,1731234648903,-728.91,0.00030136,2]
[341796017,1731234648915,-500.0,0.00030136,2]
[341796018,1731234648931,-346.26296462,0.00030136,2]
[341796019,1731234648948,-151.0,0.00030136,7]
[341796020,1731234648964,-500.0,0.00030136,2]
[341796021,1731234648977,-500.0,0.00030136,2]
[341796022,1731234648992,-500.0,0.00030136,2]
[341796023,1731234649007,-500.0,0.00030136,2]
[341796024,1731234649022,-1877.97,0.00030136,2]
[341796025,1731234649036,-500.0,0.00030136,2]
[341796026,1731234649051,-1069.58,0.00030136,2]
[341796027,1731234649066,-500.0,0.00030136,2]
[341796028,1731234649082,-996.53,0.00030136,2]
[341796029,1731234649097,-588.21,0.00030136,2]
[341796030,1731234649111,-500.0,0.00030136,2]
[341796031,1731234649127,-500.0,0.00030136,2]
[341796032,1731234649142,-500.0,0.00030136,2]
[341796033,1731234649158,-500.0,0.00030136,2]
[341796034,1731234649173,-692.36,0.00030136,2]
[341796035,1731234649187,-502.58354531,0.00030136,2]
[341796036,1731234649202,-500.0,0.00030136,2]
[341796037,1731234649216,-500.0,0.00030136,2]
[341796038,1731234649231,-500.0,0.00030136,2]
[341796039,1731234649245,-500.0,0.00030136,2]
[341796040,1731234649261,-500.0,0.00030136,2]
[341796041,1731234649275,-503.8799329,0.00030136,2]
[341796042,1731234649291,-440.08138505,0.00030136,2]
[341796043,1731234649305,-499.56104134,0.00030136,2]
[341796044,1731234649320,-423.30666193,0.00030137,60]
[341796045,1731234649335,-158.62672461,0.00030153,2]
[341796046,1731234649344,-153.958,0.0003017,30]
[341796047,1731234649354,-500.79193453,0.00030173,5]
[341796048,1731234649363,-500.0,0.00030173,5]
[341796049,1731234649372,-326.37943885,0.00030173,2]
[341796050,1731234649481,-502.84652768,0.00030173,5]
[341796051,1731234649500,-500.0,0.00030173,5]
[341796052,1731234649509,-500.0,0.00030173,5]
[341796053,1731234649518,-500.0,0.00030173,5]
[341796054,1731234649527,-504.21690364,0.00030173,5]
[341796055,1731234649537,-500.0,0.00030173,5]
[341796056,1731234649546,-500.0,0.00030173,5]
[341796057,1731234649555,-416.25194691,0.00030173,5]
[341796058,1731234649564,-500.0,0.00030173,5]
[341796059,1731234649573,-500.0,0.00030173,5]
[341796060,1731234649582,-500.0,0.00030173,5]
[341796061,1731234649591,-500.0,0.00030173,5]
[341796062,1731234649600,-500.0,0.00030173,5]
[341796063,1731234649610,-501.36934794,0.00030173,5]
[341796064,1731234649619,-500.0,0.00030173,5]
[341796065,1731234649629,-500.0,0.00030173,5]
[341796066,1731234649638,-500.0,0.00030173,5]
[341796067,1731234649647,-495.108767,0.00030173,7]
[341796068,1731234649657,-495.108767,0.00030173,7]
[341796069,1731234649667,-151.0,0.00030173,2]
[341796070,1731234649678,-5000.0,0.00030179,30]
[341796071,1731234649688,-151.0,0.00030195,7]
[341796072,1731234649699,-24335.99,0.000302,14]
[341796073,1731234649708,-150.112233,0.000302,20]
[341796074,1731234649718,-1065.617217,0.000302,7]
[341796075,1731234649727,-1065.617217,0.000302,7]
[341796076,1731234649737,-151.0,0.000302,7]
[341796077,1731234649747,-219.7967235,0.000302,7]
[341796078,1731234649756,-151.0,0.000302,7]
[341796079,1731234649766,-151.0,0.000302,7]
[341796080,1731234649775,-811.09750478,0.00030208,2]